Workbook

Sheet Instructions
B2: HOW TO USE THE DYNAMIC TOTAL COST OF OWNERSHIP DASHBOARD
B4: All cells highlighted Green are Input cells. Values can only be edited in these cells to observe the dynamic changes in the dashboard on the right.
B6: All cells highlighted Gray are Fixed cells. These values cannot be edited.
B9: CELL NAME | E9: FUNCTION | F9: ACTION REQUIRED
B10: Vehicle Holding Period (Year) | E10: Editable | F10: Use the drop down menu on Cell C5 to choose the Vehicle holding period from 1 to 10 years
B11: Daily Distance Travelled (km) | E11: Editable | F11: Use the arrows on the right to increase/decrease to input Daily Distance Travelled in km
B12: Daily Distance Travelled (mi) | E12: Fixed
B13: Annual Distance Travelled (km) | E13: Fixed
B14: Annual Distance Travelled (mi) | E14: Fixed
B16: Vehicle Purchase Cost | E16: Editable | F16: Add number values to input the purchase cost of a Bus
B17: Tax | E17: Editable | F17: Add number values to input Tax levied on the Bus
B18: Annual Insurance Cost | E18: Editable | F18: Add number values to input Annual Insurance cost of the Bus
B19: Financial Incentive | E19: Editable | F19: Add number values to input Total incentives including FAME subsidy & other miscellaneous incentives
B21: Discount Rate | E21: Editable | F21: Add percentage values to input the present value of future cash flows at the end of holding period
B22: Resale Rate | E22: Editable | F22: Add percentage values to input the resale value of the Bus at the end of holding period
B24: Terms of Payment | E24: Editable | F24: Add number values to input the Total number of years of loan repayment
B25: Interest Rate | E25: Editable | F25: Add percentage values to input prevailing interest on Bus Loans
B26: Equity | E26: Editable | F26: Add percentage values to input initial equity payment made for the purchase of the Bus
B27: Monthly EMI | E27: Fixed
B28: Charging Infrastructure Cost | E28: Editable | F28: Add number values to input the Total cost of Charging Infrastructure
B30: Staff cost per Month | E30: Editable | F30: Add number values to input Total Staff cost incurred in a month
B31: Lithium-Ion Battery Cost | E31: Editable | F31: Add number values to input prevailing cost of Li-Ion battery in USD per kWh
B33: Fuel Cost | E33: Editable | F33: Add number values to input Total cost per unit of Fuel (in associated fuel units)
B34: Capacity of Battery | E34: Editable | F34: Add number values to input capacity of battery for Electric Buses in kWh
B35: Number of Battery Replacements | E35: Editable | F35: Add number values to input total number of battery replacements for Electric Bus
B36: Mileage | E36: Editable | F36: Add number values to input mileage of different models of Buses
B37: Annual Maintenance Cost | E37: Editable | F37: Add number values to input the Annual Maintenance cost of a Bus
B40: NOTES
B42: 1. This is the first version of the tool and hence only minimal editable variables are provided. In the later versions more variables will be added for User input.
B44: 2. For more details regarding Methodology and TCO calculations, please refer to the research paper. Total Cost of Ownership Analysis of the Impact of Vehicle Usage on the Economic Viability of Electric Vehicles in India, P. Kumar and S. Chakrabarty Transport. Res. Rec., 2020 (1-10)

Sheet Buses TCO Dashboard
AK1: 10 YEAR | AL1: TCO | AR1: DYNAMIC | AS1: TCO
AK2: e-Bus | AL2: =TCO_1!C11 -> 33.04691415 | AR2: e-Bus | AS2: =VLOOKUP($C$5,$AR$10:$AV$20,2,0) -> 46.61548342
AK3: D-Bus (HC) | AL3: =TCO_1!D11 -> 54.44662468 | AR3: D - Bus (HC) | AS3: =VLOOKUP($C$5,$AR$10:$AV$20,3,0) -> 74.83020601
AK4: D-Bus (LC) | AL4: =TCO_1!E11 -> 33.46831488 | AR4: D - Bus (LC) | AS4: =VLOOKUP($C$5,$AR$10:$AV$20,4,0) -> 46.66770882
B5: Vehicle Holding Period (Year) | C5: 5 | D5: Use Drop down to choose Holding Period | AK5: CNG - Bus | AL5: =TCO_1!F11 -> 31.99191824 | AR5: CNG - Bus | AS5: =VLOOKUP($C$5,$AR$10:$AV$20,5,0) -> 44.69062533
B7: Daily Distance Travelled (km) | C7: 250 | E7: (Use Arrows to input Distance)
B8: Daily Distance Travelled (mi) | C8: =C7*0.621371 -> 155.34275
B10: Annual Distance Travelled (km) | C10: =C7*365 -> 91250 | AK10: Operational Years | AL10: e-Bus | AM10: D - Bus (HC) | AN10: D - Bus (LC) | AO10: CNG - Bus | AS10: e-Bus | AT10: D - Bus (HC) | AU10: D - Bus (LC) | AV10: CNG - Bus
B11: Annual Distance Travelled (mi) | C11: =C8*365 -> 56700.10375 | AK11: Year 1 | AL11: =TCO_1!C31 -> 139.5700933 | AM11: =TCO_1!C34 -> 188.7216381 | AN11: =TCO_1!C37 -> 125.4747386 | AO11: =TCO_1!C40 -> 121.0931114 | AR11: 1 | AS11: =IF($C$5=AR11,AL11:AO11,) -> 0
AK12: Year 2 | AL12: =TCO_1!D31 -> 82.33268989 | AM12: =TCO_1!D34 -> 120.1868876 | AN12: =TCO_1!D37 -> 77.66827556 | AO12: =TCO_1!D40 -> 74.70375568 | AR12: 2 | AS12: =IF($C$5=AR12,AL12:AO12,) -> 0
AK13: Year 3 | AL13: =TCO_1!E31 -> 62.84425426 | AM13: =TCO_1!E34 -> 96.08730215 | AN13: =TCO_1!E37 -> 61.04595938 | AO13: =TCO_1!E40 -> 58.59439152 | AR13: 3 | AS13: =IF($C$5=AR13,AL13:AO13,) -> 0
AK14: Year 4 | AL14: =TCO_1!F31 -> 52.82465172 | AM14: =TCO_1!F34 -> 83.1863828 | AN14: =TCO_1!F37 -> 52.26954927 | AO14: =TCO_1!F40 -> 50.10203964 | AR14: 4 | AS14: =IF($C$5=AR14,AL14:AO14,) -> 0
C15: INR | AK15: Year 5 | AL15: =TCO_1!G31 -> 46.61548342 | AM15: =TCO_1!G34 -> 74.83020601 | AN15: =TCO_1!G37 -> 46.66770882 | AO15: =TCO_1!G40 -> 44.69062533 | AR15: 5 | AS15: =IF($C$5=AR15,AL15:AO15,) -> 46.61548342 | AT15: 74.83020601 | AU15: 46.66770882 | AV15: 44.69062533
AK16: Year 6 | AL16: =TCO_1!H31 -> 42.32881604 | AM16: =TCO_1!H34 -> 68.79577523 | AN16: =TCO_1!H37 -> 42.68052893 | AO16: =TCO_1!H40 -> 40.84548547 | AR16: 6 | AS16: =IF($C$5=AR16,AL16:AO16,) -> 0
AK17: Year 7 | AL17: =TCO_1!I31 -> 39.15412986 | AM17: =TCO_1!I34 -> 64.12646132 | AN17: =TCO_1!I37 -> 39.63729554 | AO17: =TCO_1!I40 -> 37.91542087 | AR17: 7 | AS17: =IF($C$5=AR17,AL17:AO17,) -> 0
AK18: Year 8 | AL18: =TCO_1!J31 -> 36.68504507 | AM18: =TCO_1!J34 -> 60.34083218 | AN18: =TCO_1!J37 -> 37.20091467 | AO18: =TCO_1!J40 -> 35.57319346 | AR18: 8 | AS18: =IF($C$5=AR18,AL18:AO18,) -> 0
B19: MODEL | C19: e-Bus | D19: Diesel - Bus (HC) | E19: Diesel - Bus (LC) | F19: CNG - Bus | AK19: Year 9 | AL19: =TCO_1!K31 -> 34.69488867 | AM19: =TCO_1!K34 -> 57.16890455 | AN19: =TCO_1!K37 -> 35.18270705 | AO19: =TCO_1!K40 -> 33.63567911 | AR19: 9 | AS19: =IF($C$5=AR19,AL19:AO19,) -> 0
B20: =VLOOKUP($C$15,Currency!$B$17:$C$19,2,0) -> Vehicle Purchase Cost (₹) | C20: 15000000 | D20: 8800000 | E20: 5807000 | F20: 5600000 | AK20: Year 10 | AL20: =TCO_1!L31 -> 33.04691415 | AM20: =TCO_1!L34 -> 54.44662468 | AN20: =TCO_1!L37 -> 33.46831488 | AO20: =TCO_1!L40 -> 31.99191824 | AR20: 10 | AS20: =IF($C$5=AR20,AL20:AO20,) -> 0
B21: =VLOOKUP($C$15,Currency!$B$21:$C$23,2,0) -> Tax (₹) | C21: 0 | D21: 1752113 | E21: 1700000 | F21: 1700000
B22: =VLOOKUP($C$15,Currency!$B$25:$C$27,2,0) -> Insurance cost (₹) | C22: 0 | D22: 79200 | E22: 52263 | F22: 50400
B23: =VLOOKUP($C$15,Currency!$B$29:$C$31,2,0) -> Financial Incentive (₹) | C23: 5000000 | AL23: e-Bus | AM23: D-Bus (HC) | AN23: D-Bus (LC) | AO23: CNG Bus
B25: Discount Rate (%) | C25: 0.1 | D25: 0.1 | E25: 0.1 | F25: 0.1
B26: Resale Rate (%) | C26: 0.2 | D26: 0.1 | E26: 0.1 | F26: 0.1
B28: =VLOOKUP($C$15,Currency!$B$45:$C$47,2,0) -> Financing Component (₹) | AK28: Total Fixed Cost | AL28: =TCO_1!C10/TCO_1!C9 -> 21.60937586 | AM28: =TCO_1!D10/TCO_1!D9 -> 22.02351167 | AN28: =TCO_1!E10/TCO_1!E9 -> 15.46550335 | AO28: =TCO_1!F10/TCO_1!F9 -> 15.01812278
B29: Term of Payment (Years) | C29: 7 | D29: 7 | E29: 7 | F29: 7
B30: Interest Rate (%) | C30: 0.11 | D30: 0.08 | E30: 0.08 | F30: 0.08 | AK30: Total Variable Cost | AL30: =TCO_1!L22/TCO_1!C9 -> 11.43753829 | AM30: =TCO_1!L23/TCO_1!D9 -> 32.423113 | AN30: =TCO_1!L24/TCO_1!E9 -> 18.00281153 | AO30: =TCO_1!L25/TCO_1!F9 -> 16.97379546
B31: Equity (%) | C31: 0.2 | D31: 0.2 | E31: 0.2 | F31: 0.2 | AK31: Total TCO | AL31: =SUM(AL28:AL30) -> 33.04691415 | AM31: =SUM(AM28:AM30) -> 54.44662468 | AN31: =SUM(AN28:AN30) -> 33.46831488 | AO31: =SUM(AO28:AO30) -> 31.99191824
B32: =VLOOKUP($C$15,Currency!$B$49:$C$51,2,0) -> Monthly EMI (₹) | C32: =Financing!B12 -> 137455.682 | D32: =Financing!C12 -> 110145.997 | E32: =Financing!D12 -> 72683.84144 | F32: =Financing!E12 -> 70092.90719
B33: =VLOOKUP($C$15,Currency!$B$53:$C$55,2,0) -> Charging Infrastructure Cost (₹) | C33: 0
AK36: Cost Components | AL36: e-Bus | AM36: D-Bus (HC) | AN36: D-Bus (LC) | AO36: CNG - Bus
AK37: Fixed | AL37: =Summary!B19 -> 13546277.28 | AM37: =Summary!C19 -> 12843576.75 | AN37: =Summary!D19 -> 9019105.681 | AO37: =Summary!E19 -> 8758204.204
AK38: Maintenance | AL38: =Summary!B23 -> 215000 | AM38: =Summary!C23 -> 565000 | AN38: =Summary!D23 -> 365000 | AO38: =Summary!E23 -> 389000
B39: =VLOOKUP($C$15,Currency!$B$33:$C$35,2,0) -> Staff Cost per Month (₹) | C39: 50000 | AK39: Battery Replacement | AL39: =Summary!B24 -> 336033.6 | AM39: =Summary!C24 -> 0 | AN39: =Summary!D24 -> 0 | AO39: =Summary!E24 -> 0
B40: Lithium-Ion Battery Cost (USD/kWh) | C40: 137
AK41: Fuel | AL41: =Summary!B25 -> 547500 | AM41: =Summary!C25 -> 3650000 | AN41: =Summary!D25 -> 1708510.638 | AO41: =Summary!E25 -> 1531696.429
B42: MODEL | C42: e-Bus | D42: Diesel - Bus (HC) | E42: Diesel - Bus (LC) | F42: CNG - Bus
B43: =VLOOKUP($C$15,Currency!$B$37:$C$39,2,0) -> Fuel cost (₹/kWh; ₹/L; ₹/kg ) | C43: 6 | D43: 88 | E43: 88 | F43: 47 | AL43: e-Bus | AM43: D-Bus (HC) | AN43: D-Bus (LC) | AO43: CNG - Bus
B44: Capacity of Battery (kWh) | C44: 280
B45: Number of Battery Replacements | C45: 1
B46: Mileage (km/kWh; km/L; km/kg) | C46: 1 | D46: 2.2 | E46: 4.7 | F46: 2.8
B47: =VLOOKUP($C$15,Currency!$B$41:$C$43,2,0) -> Annual Maintenance Cost (₹) | C47: 150000 | D47: 500000 | E47: 300000 | F47: 324000 | AK47: Fixed Cost | AL47: =AL28/AL31 -> 0.6538999607 | AM47: =AM28/AM31 -> 0.4044972816 | AN47: 0.4620938761 | AO47: 0.469434895
AK48: Variable Cost | AL48: =AL30/AL31 -> 0.3461000393 | AM48: =AM30/AM31 -> 0.5955027184 | AN48: 0.5379061239 | AO48: 0.530565105
B52: NOTES | AL52: =SUM(AL47:AL51) -> 1 | AM52: =SUM(AM47:AM51) -> 1 | AN52: =SUM(AN47:AN51) -> 1 | AO52: =SUM(AO47:AO51) -> 1
B54: 1. Model Key
B55: D-Bus (HC) = Diesel High-Cost Bus
B56: D-Bus (LC) = Diesel Low-Cost Bus
B58: 2. Financial Incentives can be added by referencing Department of Heavy Industry's website
B59: https://fame2.heavyindustry.gov.in/ModelUnderFame.aspx
B61: 3. Additional Features like Sensitivity Analysis will be added in the next iteration of the model

Sheet Summary
A1: TRAVEL DETAILS
A2: Number of Vehicle | B2: 1
A3: Life of Vehicle (yrs) | B3: 10
A4: Annual drive distance (KM) | B4: ='Buses TCO Dashboard'!C10 -> 91250
A5: Total Distance Travel (KM) | B5: =B3*B4 -> 912500
A6: LIB Cost (USD/kWh) | B6: ='Buses TCO Dashboard'!C40 -> 137
A7: USD to INR | B7: 73
A8: VRLA Cost (USD/kWh) | B8: 100
A9: General Inputs | B9: e-Bus (AC) | C9: Diesel-HC Bus (AC) | D9: Diesel-LC Bus (AC) | E9: CNG-Bus (AC)
A10: Discount rate (%) | B10: ='Buses TCO Dashboard'!C25 -> 0.1 | C10: ='Buses TCO Dashboard'!D25 -> 0.1 | D10: ='Buses TCO Dashboard'!E25 -> 0.1 | E10: ='Buses TCO Dashboard'!F25 -> 0.1
A11: Resale rate (%) | B11: ='Buses TCO Dashboard'!C26 -> 0.2 | C11: ='Buses TCO Dashboard'!D26 -> 0.1 | D11: ='Buses TCO Dashboard'!E26 -> 0.1 | E11: ='Buses TCO Dashboard'!F26 -> 0.1
A13: Capital Cost | B13: e-Bus (AC) | C13: Diesel-HC Bus (AC) | D13: Diesel-LC Bus (AC) | E13: CNG-Bus (AC)
A14: Total Vehicle Cost (₹) | B14: ='Capital Cost'!B8 -> 18546277.28 | C14: ='Capital Cost'!C8 -> 12843576.75 | D14: ='Capital Cost'!D8 -> 9019105.681 | E14: ='Capital Cost'!E8 -> 8758204.204
A15: Resale Value (₹) | B15: =B14*B11 -> 3709255.457 | C15: =C14*C11 -> 1284357.675 | D15: =D14*D11 -> 901910.5681 | E15: =E14*E11 -> 875820.4204
A16: Total Charging Infrastructure Cost (₹) | B16: ='Buses TCO Dashboard'!C33 -> 0 | C16: ='Capital Cost'!C19/B2 -> 0 | D16: ='Capital Cost'!D19/B2 -> 0 | E16: ='Capital Cost'!E19/B2 -> 0
A17: Misc. Cost (₹) | B17: 0 | C17: 0 | D17: 0 | E17: 0
A18: Financial Incentive (₹) | B18: ='Buses TCO Dashboard'!C23 -> 5000000 | C18: 0 | D18: 0 | E18: 0
A19: Total Capital Cost (₹) excl. Resale Value | B19: =(B14+B16+B17)-B18 -> 13546277.28 | C19: =(C14+C16+C17)-C18 -> 12843576.75 | D19: 9019105.681 | E19: 8758204.204
A21: Annual Operational Cost | B21: e-Bus (AC) | C21: Diesel-HC Bus (AC) | D21: Diesel-LC Bus (AC) | E21: CNG-Bus (AC)
A22: Staff Cost (₹) | B22: ='Operational Cost'!B4 -> 600000 | C22: ='Operational Cost'!C4 -> 600000 | D22: ='Operational Cost'!D4 -> 600000 | E22: ='Operational Cost'!E4 -> 600000
A23: Maintenance Cost (₹) | B23: ='Operational Cost'!B18 -> 215000 | C23: ='Operational Cost'!C18 -> 565000 | D23: ='Operational Cost'!D18 -> 365000 | E23: ='Operational Cost'!E18 -> 389000
A24: Battery Replacement Cost (₹)* | B24: ='Operational Cost'!B27/B3 -> 336033.6 | C24: ='Operational Cost'!C27/B3 -> 0 | D24: ='Operational Cost'!D27/B3 -> 0
A25: Average Fuel Cost (₹) | B25: ='Operational Cost'!B11 -> 547500 | C25: ='Operational Cost'!C11 -> 3650000 | D25: ='Operational Cost'!D11 -> 1708510.638 | E25: ='Operational Cost'!E11 -> 1531696.429
A26: Misc. Cost (₹) | B26: 0 | C26: 0 | D26: 0 | E26: 0
A27: Total Operational Cost (₹) | B27: =(SUM(B22:B26)) -> 1698533.6 | C27: =(SUM(C22:C26)) -> 4815000 | D27: =(SUM(D22:D26)) -> 2673510.638 | E27: =(SUM(E22:E26)) -> 2520696.429
A29: Total Operational Cost for life of Bus | B29: =B27*$B$3 -> 16985336 | C29: =C27*$B$3 -> 48150000 | D29: =D27*$B$3 -> 26735106.38 | E29: =E27*$B$3 -> 25206964.29
A30: Average TCO | B30: =TCO_1!C11 -> 33.04691415 | C30: =TCO_1!D11 -> 54.44662468 | D30: =TCO_1!E11 -> 33.46831488 | E30: =TCO_1!F11 -> 31.99191824

Sheet Currency (hidden)
B2: CURRENCY CONVERSION
B4: USD | C4: INR | D4: Conversion
B5: 1 | C5: 74 | D5: =B5*C5 -> 74
B7: EURO | C7: INR | D7: Conversion
B8: 1 | C8: 82 | D8: =B8*C8 -> 82
B16: DROP DOWN | E16: DASHBOARD TITLE | H16: Gallon Calculation | K16: DASHBOARD TITLE 2
B17: INR | C17: =IF(B17='Buses TCO Dashboard'!$C$15,"Vehicle Purchase Cost (₹)","") -> Vehicle Purchase Cost (₹) | E17: INR | F17: =IF(E17='Buses TCO Dashboard'!C15,"TCO BY MODELS AT YEAR 10 (₹ / km)","") -> TCO BY MODELS AT YEAR 10 (₹ / km) | H17: USD | K17: 1 | L17: =IF('Buses TCO Dashboard'!$C$5=Currency!K17,"TCO AT YEAR 1","") -> 
B18: USD | C18: =IF(B18='Buses TCO Dashboard'!$C$15,"Vehicle Purchase Cost ($)","") ->  | E18: USD | F18: =IF(E18='Buses TCO Dashboard'!C15,"TCO BY MODELS AT YEAR 10 ($ / mi)","") ->  | H18: Gallon Calculation | I18: =IF('[1]Dynamic Ranges for 2W'!$C$15=H17,'[1]Dynamic Ranges for 2W'!F38*3.78,"-") -> - | K18: 2 | L18: =IF('Buses TCO Dashboard'!$C$5=Currency!K18,"TCO AT YEAR 2","") -> 
B19: EURO | C19: =IF(B19='Buses TCO Dashboard'!$C$15,"Vehicle Purchase Cost (€)","") ->  | E19: EURO | F19: =IF(E19='Buses TCO Dashboard'!C15,"TCO BY MODEL AT YEAR 10 (€ / km)","") ->  | K19: 3 | L19: =IF('Buses TCO Dashboard'!$C$5=Currency!K19,"TCO AT YEAR 3","") -> 
K20: 4 | L20: =IF('Buses TCO Dashboard'!$C$5=Currency!K20,"TCO AT YEAR 4","") -> 
B21: INR | C21: =IF(B21='Buses TCO Dashboard'!$C$15,"Tax (₹)","") -> Tax (₹) | E21: INR | F21: =IF(E21='Buses TCO Dashboard'!C15,"TCO BREAKDOWN BY COST AT YEAR 10 (₹ / km)","") -> TCO BREAKDOWN BY COST AT YEAR 10 (₹ / km) | K21: 5 | L21: =IF('Buses TCO Dashboard'!$C$5=Currency!K21,"TCO AT YEAR 5","") -> TCO AT YEAR 5
B22: USD | C22: =IF(B22='Buses TCO Dashboard'!$C$15,"Tax ($)","") ->  | E22: USD | F22: =IF(E22='Buses TCO Dashboard'!C15,"TCO BREAKDOWN BY COST AT YEAR 10 ($ / mi)","") ->  | K22: 6 | L22: =IF('Buses TCO Dashboard'!$C$5=Currency!K22,"TCO AT YEAR 6","") -> 
B23: EURO | C23: =IF(B23='Buses TCO Dashboard'!$C$15,"Tax (€)","") ->  | E23: EURO | F23: =IF(E23='Buses TCO Dashboard'!C15,"TCO BREAKDOWN BY COST AT YEAR 10 (€ / km)","") ->  | K23: 7 | L23: =IF('Buses TCO Dashboard'!$C$5=Currency!K23,"TCO AT YEAR 7","") -> 
K24: 8 | L24: =IF('Buses TCO Dashboard'!$C$5=Currency!K24,"TCO AT YEAR 8","") -> 
B25: INR | C25: =IF(B25='Buses TCO Dashboard'!$C$15,"Insurance cost (₹)","") -> Insurance cost (₹) | E25: INR | F25: =IF(E25='Buses TCO Dashboard'!C15,"TOTAL COST OF OWNERSHIP OVER YEARS (₹ / km)","") -> TOTAL COST OF OWNERSHIP OVER YEARS (₹ / km) | K25: 9 | L25: =IF('Buses TCO Dashboard'!$C$5=Currency!K25,"TCO AT YEAR 9","") -> 
B26: USD | C26: =IF(B26='Buses TCO Dashboard'!$C$15,"Insurance Cost ($)","") ->  | E26: USD | F26: =IF(E26='Buses TCO Dashboard'!C15,"TOTAL COST OF OWNERSHIP OVER YEARS ($ / mi)","") ->  | K26: 10 | L26: =IF('Buses TCO Dashboard'!$C$5=Currency!K26,"TCO AT YEAR 10","") -> 
B27: EURO | C27: =IF(B27='Buses TCO Dashboard'!$C$15,"Insurance Cost (€)","") ->  | E27: EURO | F27: =IF(E27='Buses TCO Dashboard'!C15,"TOTAL COST OF OWNERSHIP OVER YEARS (€ / km)","") -> 
B29: INR | C29: =IF(B29='Buses TCO Dashboard'!$C$15,"Financial Incentive (₹)","") -> Financial Incentive (₹)
B30: USD | C30: =IF(B30='Buses TCO Dashboard'!$C$15,"Financial Incentive ($)","") -> 
B31: EURO | C31: =IF(B31='Buses TCO Dashboard'!$C$15,"Financial Incentive (€)","") -> 
B33: INR | C33: =IF(B33='Buses TCO Dashboard'!$C$15,"Staff Cost per Month (₹)","") -> Staff Cost per Month (₹)
B34: USD | C34: =IF(B34='Buses TCO Dashboard'!$C$15,"Staff Cost per Month ($)","") -> 
B35: EURO | C35: =IF(B35='Buses TCO Dashboard'!$C$15,"Staff Cost per Month (€)","") -> 
B37: INR | C37: =IF(B37='Buses TCO Dashboard'!$C$15,"Fuel cost (₹/kWh; ₹/L; ₹/kg )","") -> Fuel cost (₹/kWh; ₹/L; ₹/kg )
B38: USD | C38: =IF(B38='Buses TCO Dashboard'!$C$15,"Fuel cost ($/kWh; $/gal; $/GGE)","") -> 
B39: EURO | C39: =IF(B39='Buses TCO Dashboard'!$C$15,"Fuel cost (€/kWh; €/L; €/kg )","") -> 
B41: INR | C41: =IF(B41='Buses TCO Dashboard'!$C$15,"Annual Maintenance Cost (₹)","") -> Annual Maintenance Cost (₹)
B42: USD | C42: =IF(B42='Buses TCO Dashboard'!$C$15,"Annual Maintenance Cost ($)","") -> 
B43: EURO | C43: =IF(B43='Buses TCO Dashboard'!$C$15,"Annual Maintenance Cost (€)","") -> 
B45: INR | C45: =IF(B45='Buses TCO Dashboard'!$C$15,"Financing Component (₹)","") -> Financing Component (₹)
B46: USD | C46: =IF(B46='Buses TCO Dashboard'!$C$15,"Financing Component ($)","") -> 
B47: EURO | C47: =IF(B47='Buses TCO Dashboard'!$C$15,"Financing Component (€)","") -> 
B49: INR | C49: =IF(B49='Buses TCO Dashboard'!$C$15,"Monthly EMI (₹)","") -> Monthly EMI (₹)
B50: USD | C50: =IF(B50='Buses TCO Dashboard'!$C$15,"Monthly EMI ($)","") -> 
B51: EURO | C51: =IF(B51='Buses TCO Dashboard'!$C$15,"Monthly EMI (€)","") -> 
B53: INR | C53: =IF(B53='Buses TCO Dashboard'!$C$15,"Charging Infrastructure Cost (₹)","") -> Charging Infrastructure Cost (₹)
B54: USD | C54: =IF(B54='Buses TCO Dashboard'!$C$15,"Charging Infrastructure Cost ($)","") -> 
B55: EURO | C55: =IF(B55='Buses TCO Dashboard'!$C$15,"Charging Infrastructure Cost (€)","") -> 

Sheet Capital Cost (hidden)
A1: Vehicle Cost | B1: e-Bus (AC) | C1: Diesel-HC Bus (AC) | D1: Diesel-LC Bus (AC) | E1: CNG-Bus (AC)
A2: Purchase Cost (₹) | B2: =VLOOKUP('Buses TCO Dashboard'!$C$15,'Capital Cost'!$A$25:$E$27,2,0) -> 15000000 | C2: =VLOOKUP('Buses TCO Dashboard'!$C$15,'Capital Cost'!$A$25:$E$27,3,0) -> 8800000 | D2: =VLOOKUP('Buses TCO Dashboard'!$C$15,'Capital Cost'!$A$25:$E$27,4,0) -> 5807000 | E2: =VLOOKUP('Buses TCO Dashboard'!$C$15,'Capital Cost'!$A$25:$E$27,5,0) -> 5600000
A3: Tax (₹) | B3: =VLOOKUP('Buses TCO Dashboard'!$C$15,'Capital Cost'!$A$30:$E$32,2,0) -> 0 | C3: =VLOOKUP('Buses TCO Dashboard'!$C$15,'Capital Cost'!$A$30:$E$32,3,0) -> 1752113 | D3: =VLOOKUP('Buses TCO Dashboard'!$C$15,'Capital Cost'!$A$30:$E$32,4,0) -> 1700000 | E3: =VLOOKUP('Buses TCO Dashboard'!$C$15,'Capital Cost'!$A$30:$E$32,5,0) -> 1700000
A4: Insurance (₹) | B4: =VLOOKUP('Buses TCO Dashboard'!$C$15,'Capital Cost'!$A$35:$E$37,2,0) -> 0 | C4: =VLOOKUP('Buses TCO Dashboard'!$C$15,'Capital Cost'!$A$35:$E$37,3,0) -> 79200 | D4: =VLOOKUP('Buses TCO Dashboard'!$C$15,'Capital Cost'!$A$35:$E$37,4,0) -> 52263 | E4: =VLOOKUP('Buses TCO Dashboard'!$C$15,'Capital Cost'!$A$35:$E$37,5,0) -> 50400
A5: Financing Component (₹) | B5: =Financing!B17 -> 3546277.284 | C5: =Financing!C17 -> 2212263.749 | D5: =Financing!D17 -> 1459842.681 | E5: =Financing!E17 -> 1407804.204
A6: Total Financial Incentive (₹) | B6: 0 | C6: 0 | D6: 0 | E6: 0
A7: Misc. Cost (₹) | B7: 0 | C7: 0 | D7: 0 | E7: 0
A8: Total Vehicle Cost (₹) | B8: =((B2+B3+B4+B5+B7)-B6) -> 18546277.28 | C8: =((C2+C3+C4+C5+C7)-C6) -> 12843576.75 | D8: =((D2+D3+D4+D5+D7)-D6) -> 9019105.681 | E8: =((E2+E3+E4+E5+E7)-E6) -> 8758204.204
A10: Charging Infrastructure Cost | B10: e-Bus (AC) | C10: Diesel-HC Bus (AC) | D10: Diesel-LC Bus (AC) | E10: CNG-Bus (AC)
A11: No. of Slow Charger (SC) | B11: 0 | C11: 0 | D11: 0 | E11: 0
A12: Cost of SC per unit (₹) | B12: 0 | C12: 0 | D12: 0 | E12: 0
A13: Total Cost of SC (₹) | B13: =B11*B12 -> 0 | C13: =C11*C12 -> 0 | D13: =D11*D12 -> 0 | E13: 0
A14: No. of Fast Charger (FC) | B14: 0 | C14: 0 | D14: 0 | E14: 0
A15: Cost of FC per unit (₹) | B15: 0 | C15: 0 | D15: 0 | E15: 0
A16: Total Cost of FC (₹) | B16: =B14*B15 -> 0 | C16: =C14*C15 -> 0 | D16: =D14*D15 -> 0 | E16: 0
A17: Installation cost of Charging Infra (₹) | B17: =(B13+B16)*20/100 -> 0 | C17: =(C13+C16)*20/100 -> 0 | D17: =(D13+D16)*20/100 -> 0 | E17: 0
A18: Total incentive for Charging Infra (₹) | B18: 0 | C18: 0 | D18: 0 | E18: 0
A19: Total Cost of Charging Infra (Rs.) | B19: =(B13+B16+B17)-B18 -> 0 | C19: =(C13+C16+C17)-C18 -> 0 | D19: =(D13+D16+D17)-D18 -> 0 | E19: 0
A22: Per Km Capital Cost | B22: =(B8+B19)/Summary!$B$4 -> 203.2468743 | C22: =(C8+C19)/Summary!$B$4 -> 140.751526 | D22: =(D8+D19)/Summary!$B$4 -> 98.83951431 | E22: =(E8+E19)/Summary!$B$4 -> 95.98032004
A24: PURCHASE COST
A25: INR | B25: =IF($A$25='Buses TCO Dashboard'!$C$15,'Buses TCO Dashboard'!C20,) -> 15000000 | C25: =IF($A$25='Buses TCO Dashboard'!$C$15,'Buses TCO Dashboard'!D20,) -> 8800000 | D25: =IF($A$25='Buses TCO Dashboard'!$C$15,'Buses TCO Dashboard'!E20,) -> 5807000 | E25: =IF($A$25='Buses TCO Dashboard'!$C$15,'Buses TCO Dashboard'!F20,) -> 5600000
A26: USD | B26: =IF($A$26='Buses TCO Dashboard'!$C$15,'Buses TCO Dashboard'!C20*Currency!$C$5,) -> 0 | C26: =IF($A$26='Buses TCO Dashboard'!$C$15,'Buses TCO Dashboard'!D20*Currency!$C$5,) -> 0 | D26: =IF($A$26='Buses TCO Dashboard'!$C$15,'Buses TCO Dashboard'!E20*Currency!$C$5,) -> 0 | E26: =IF($A$26='Buses TCO Dashboard'!$C$15,'Buses TCO Dashboard'!F20*Currency!$C$5,) -> 0
A27: EURO | B27: =IF($A$27='Buses TCO Dashboard'!$C$15,'Buses TCO Dashboard'!C20*Currency!$C$8,) -> 0 | C27: =IF($A$27='Buses TCO Dashboard'!$C$15,'Buses TCO Dashboard'!D20*Currency!$C$8,) -> 0 | D27: =IF($A$27='Buses TCO Dashboard'!$C$15,'Buses TCO Dashboard'!E20*Currency!$C$8,) -> 0 | E27: =IF($A$27='Buses TCO Dashboard'!$C$15,'Buses TCO Dashboard'!F20*Currency!$C$8,) -> 0
A29: TAX
A30: INR | B30: =IF($A$30='Buses TCO Dashboard'!$C$15,'Buses TCO Dashboard'!C21,) -> 0 | C30: =IF($A$30='Buses TCO Dashboard'!$C$15,'Buses TCO Dashboard'!D21,) -> 1752113 | D30: =IF($A$30='Buses TCO Dashboard'!$C$15,'Buses TCO Dashboard'!E21,) -> 1700000 | E30: =IF($A$30='Buses TCO Dashboard'!$C$15,'Buses TCO Dashboard'!F21,) -> 1700000
A31: USD | B31: =IF($A$31='Buses TCO Dashboard'!$C$15,'Buses TCO Dashboard'!C21*Currency!$C$5,) -> 0 | C31: =IF($A$31='Buses TCO Dashboard'!$C$15,'Buses TCO Dashboard'!D21*Currency!$C$5,) -> 0 | D31: =IF($A$31='Buses TCO Dashboard'!$C$15,'Buses TCO Dashboard'!E21*Currency!$C$5,) -> 0 | E31: =IF($A$31='Buses TCO Dashboard'!$C$15,'Buses TCO Dashboard'!F21*Currency!$C$5,) -> 0
A32: EURO | B32: =IF($A$32='Buses TCO Dashboard'!$C$15,'Buses TCO Dashboard'!C21*Currency!$C$8,) -> 0 | C32: =IF($A$32='Buses TCO Dashboard'!$C$15,'Buses TCO Dashboard'!D21*Currency!$C$8,) -> 0 | D32: =IF($A$32='Buses TCO Dashboard'!$C$15,'Buses TCO Dashboard'!E21*Currency!$C$8,) -> 0 | E32: =IF($A$32='Buses TCO Dashboard'!$C$15,'Buses TCO Dashboard'!F21*Currency!$C$8,) -> 0
A34: INSURANCE
A35: INR | B35: =IF($A$35='Buses TCO Dashboard'!$C$15,'Buses TCO Dashboard'!C22,) -> 0 | C35: =IF($A$35='Buses TCO Dashboard'!$C$15,'Buses TCO Dashboard'!D22,) -> 79200 | D35: =IF($A$35='Buses TCO Dashboard'!$C$15,'Buses TCO Dashboard'!E22,) -> 52263 | E35: =IF($A$35='Buses TCO Dashboard'!$C$15,'Buses TCO Dashboard'!F22,) -> 50400
A36: USD | B36: =IF($A$36='Buses TCO Dashboard'!$C$15,'Buses TCO Dashboard'!C22*Currency!$C$5,) -> 0 | C36: =IF($A$36='Buses TCO Dashboard'!$C$15,'Buses TCO Dashboard'!D22*Currency!$C$5,) -> 0 | D36: =IF($A$36='Buses TCO Dashboard'!$C$15,'Buses TCO Dashboard'!E22*Currency!$C$5,) -> 0 | E36: =IF($A$36='Buses TCO Dashboard'!$C$15,'Buses TCO Dashboard'!F22*Currency!$C$5,) -> 0
A37: EURO | B37: =IF($A$37='Buses TCO Dashboard'!$C$15,'Buses TCO Dashboard'!C22*Currency!$C$8,) -> 0 | C37: =IF($A$37='Buses TCO Dashboard'!$C$15,'Buses TCO Dashboard'!D22*Currency!$C$8,) -> 0 | D37: =IF($A$37='Buses TCO Dashboard'!$C$15,'Buses TCO Dashboard'!E22*Currency!$C$8,) -> 0 | E37: =IF($A$37='Buses TCO Dashboard'!$C$15,'Buses TCO Dashboard'!F22*Currency!$C$8,) -> 0
A39: INCENTIVE
A40: INR | B40: =IF($A$40='Buses TCO Dashboard'!$C$15,'Buses TCO Dashboard'!C23,) -> 5000000 | C40: =IF($A$40='Buses TCO Dashboard'!$C$15,'Buses TCO Dashboard'!D23,) -> 0 | D40: =IF($A$40='Buses TCO Dashboard'!$C$15,'Buses TCO Dashboard'!E23,) -> 0 | E40: =IF($A$40='Buses TCO Dashboard'!$C$15,'Buses TCO Dashboard'!F23,) -> 0
A41: USD | B41: =IF($A$41='Buses TCO Dashboard'!$C$15,'Buses TCO Dashboard'!C23*Currency!$C$5,) -> 0 | C41: =IF($A$41='Buses TCO Dashboard'!$C$15,'Buses TCO Dashboard'!D23*Currency!$C$5,) -> 0 | D41: =IF($A$41='Buses TCO Dashboard'!$C$15,'Buses TCO Dashboard'!E23*Currency!$C$5,) -> 0 | E41: =IF($A$41='Buses TCO Dashboard'!$C$15,'Buses TCO Dashboard'!F23*Currency!$C$5,) -> 0
A42: EURO | B42: =IF($A$42='Buses TCO Dashboard'!$C$15,'Buses TCO Dashboard'!C23*Currency!$C$8,) -> 0 | C42: =IF($A$42='Buses TCO Dashboard'!$C$15,'Buses TCO Dashboard'!D23*Currency!$C$8,) -> 0 | D42: =IF($A$42='Buses TCO Dashboard'!$C$15,'Buses TCO Dashboard'!E23*Currency!$C$8,) -> 0 | E42: =IF($A$42='Buses TCO Dashboard'!$C$15,'Buses TCO Dashboard'!F23*Currency!$C$8,) -> 0

Sheet Operational Cost (hidden)
A1: Staff cost | B1: e-Bus (AC) | C1: Diesel-HC Bus (AC) | D1: Diesel-LC Bus (AC) | E1: CNG-Bus (AC)
A2: Staff Cost (₹ / Month) | B2: =VLOOKUP('Buses TCO Dashboard'!$C$15,'Operational Cost'!$A$35:$B$37,2,0) -> 50000 | C2: =VLOOKUP('Buses TCO Dashboard'!$C$15,'Operational Cost'!$A$35:$B$37,2,0) -> 50000 | D2: =VLOOKUP('Buses TCO Dashboard'!$C$15,'Operational Cost'!$A$35:$B$37,2,0) -> 50000 | E2: =VLOOKUP('Buses TCO Dashboard'!$C$15,'Operational Cost'!$A$35:$B$37,2,0) -> 50000
A3: Other Support staff cost (₹ / Month) | B3: 0 | C3: 0 | D3: 0 | E3: 0
A4: Total Annual Staff Cost (₹) | B4: =((B2+B3)*12) -> 600000 | C4: =((C2+C3)*12) -> 600000 | D4: 600000 | E4: 600000
A5: Per km Staff Cost | B5: =B4/Summary!$B$4 -> 6.575342466 | C5: =C4/Summary!$B$4 -> 6.575342466 | D5: =D4/Summary!$B$4 -> 6.575342466 | E5: =E4/Summary!$B$4 -> 6.575342466
A7: Average Fuel Cost | B7: e-Bus (AC) | C7: Diesel-HC Bus (AC) | D7: Diesel-LC Bus (AC) | E7: CNG-Bus (AC)
A8: Fuel cost (₹/kWh; ₹/L) | B8: =VLOOKUP('Buses TCO Dashboard'!$C$15,'Operational Cost'!$A$45:$E$47,2,0) -> 6 | C8: =VLOOKUP('Buses TCO Dashboard'!$C$15,'Operational Cost'!$A$45:$E$47,3,0) -> 88 | D8: =VLOOKUP('Buses TCO Dashboard'!$C$15,'Operational Cost'!$A$45:$E$47,4,0) -> 88 | E8: =VLOOKUP('Buses TCO Dashboard'!$C$15,'Operational Cost'!$A$45:$E$47,5,0) -> 47
A9: Mileage (km/kWh; km/L) | B9: ='Buses TCO Dashboard'!C46 -> 1 | C9: ='Buses TCO Dashboard'!D46 -> 2.2 | D9: ='Buses TCO Dashboard'!E46 -> 4.7 | E9: ='Buses TCO Dashboard'!F46 -> 2.8
A10: Annual fuel consumption (kWh; L) | B10: =Summary!B4/B9 -> 91250 | C10: =Summary!B4/C9 -> 41477.27273 | D10: =Summary!B4/D9 -> 19414.89362 | E10: =Summary!$B$4/E9 -> 32589.28571
A11: Total Annual Fuel Cost ( ₹ ) | B11: =(B10*B8) -> 547500 | C11: =(C10*C8) -> 3650000 | D11: =(D10*D8) -> 1708510.638 | E11: =(E10*E8) -> 1531696.429
A12: Per km Fuel Cost | B12: =B11/Summary!$B$4 -> 6 | C12: =C11/Summary!$B$4 -> 40 | D12: =D11/Summary!$B$4 -> 18.72340426 | E12: =E11/Summary!$B$4 -> 16.78571429
A14: Maintenance Cost | B14: e-Bus (AC) | C14: Diesel-HC Bus (AC) | D14: Diesel-LC Bus (AC) | E14: CNG-Bus (AC)
A15: Annual Maintenance Cost (₹) | B15: =VLOOKUP('Buses TCO Dashboard'!$C$15,'Operational Cost'!$A$40:$E$42,2,0) -> 150000 | C15: =VLOOKUP('Buses TCO Dashboard'!$C$15,'Operational Cost'!$A$40:$E$42,3,0) -> 500000 | D15: =VLOOKUP('Buses TCO Dashboard'!$C$15,'Operational Cost'!$A$40:$E$42,4,0) -> 300000 | E15: =VLOOKUP('Buses TCO Dashboard'!$C$15,'Operational Cost'!$A$40:$E$42,5,0) -> 324000
A16: Other Consumables (₹) | B16: 0 | C16: 0 | D16: 0 | E16: 0
A17: Other Misc. Cost (₹) | B17: 65000 | C17: 65000 | D17: 65000 | E17: 65000
A18: Total Annual Maintenance cost (₹) | B18: =(SUM(B15:B17)) -> 215000 | C18: =(SUM(C15:C17)) -> 565000 | D18: =(SUM(D15:D17)) -> 365000 | E18: =(SUM(E15:E17)) -> 389000
A19: Per km Maintenance Cost | B19: =B18/Summary!$B$4 -> 2.356164384 | C19: =C18/Summary!$B$4 -> 6.191780822 | D19: =D18/Summary!$B$4 -> 4 | E19: =E18/Summary!$B$4 -> 4.263013699
A21: Battery Replacement Cost | B21: e-Bus (AC) | C21: Diesel-HC Bus (AC) | D21: Diesel-LC Bus (AC) | E21: CNG-Bus (AC)
A22: Number of battery replacements | B22: ='Buses TCO Dashboard'!C45 -> 1 | C22: 0 | D22: 0 | E22: 0
A23: Capacity of battery (kWh) | B23: ='Buses TCO Dashboard'!C44 -> 280 | C23: 0 | D23: 0 | E23: 0
A24: Battery Cost (₹ / kWh) | B24: =Summary!B6*Summary!B7 -> 10001 | C24: 0 | D24: 0 | E24: 0
A25: Total battery Cost (₹) | B25: =B24*B23 -> 2800280 | C25: =C24*C23 -> 0 | D25: =D24*D23 -> 0 | E25: 0
A26: Battery replacement Charge (₹) | B26: =B25*0.2 -> 560056 | C26: 0 | D26: 0 | E26: 0
A27: Total battery replacement cost (₹) | B27: =((B25+B26)*B22) -> 3360336 | C27: =((C25+C26)*C22) -> 0 | D27: =((D25+D26)*D22) -> 0 | E27: 0
A28: Annual Battery Replacement Cost | B28: =B27/Summary!B3 -> 336033.6 | C28: =C27/Summary!B3 -> 0 | D28: =D27/Summary!B3 -> 0
A29: Per Km Battery Replacement Cost | B29: =B27/Summary!$B$5 -> 3.68256 | C29: =C27/Summary!$B$5 -> 0 | D29: =D27/Summary!$B$5 -> 0 | E29: =E27/Summary!$B$5 -> 0
A31: Total Operational Cost | B31: =B27+B18+B11+B4 -> 4722836 | C31: =C27+C18+C11+C4 -> 4815000 | D31: =D27+D18+D11+D4 -> 2673510.638 | E31: =E27+E18+E11+E4 -> 2520696.429
A32: Per Km Operational Cost | B32: =B29+B19+B12+B5 -> 18.61406685 | C32: =C29+C19+C12+C5 -> 52.76712329 | D32: =D29+D19+D12+D5 -> 29.29874672 | E32: =E29+E19+E12+E5 -> 27.62407045
A34: STAFF COST
A35: INR | B35: =IF($A$35='Buses TCO Dashboard'!$C$15,'Buses TCO Dashboard'!C39,) -> 50000
A36: USD | B36: =IF($A$36='Buses TCO Dashboard'!$C$15,'Buses TCO Dashboard'!C39*Currency!$C$5,) -> 0
A37: EURO | B37: =IF($A$37='Buses TCO Dashboard'!$C$15,'Buses TCO Dashboard'!C39*Currency!$C$8,) -> 0
A39: ANNUAL MAINTENANCE COST
A40: INR | B40: =IF($A$40='Buses TCO Dashboard'!$C$15,'Buses TCO Dashboard'!C47,) -> 150000 | C40: =IF($A$40='Buses TCO Dashboard'!$C$15,'Buses TCO Dashboard'!D47,) -> 500000 | D40: =IF($A$40='Buses TCO Dashboard'!$C$15,'Buses TCO Dashboard'!E47,) -> 300000 | E40: =IF($A$40='Buses TCO Dashboard'!$C$15,'Buses TCO Dashboard'!F47,) -> 324000
A41: USD | B41: =IF($A$41='Buses TCO Dashboard'!$C$15,'Buses TCO Dashboard'!C47*Currency!$C$5,) -> 0 | C41: =IF($A$41='Buses TCO Dashboard'!$C$15,'Buses TCO Dashboard'!D47*Currency!$C$5,) -> 0 | D41: =IF($A$41='Buses TCO Dashboard'!$C$15,'Buses TCO Dashboard'!E47*Currency!$C$5,) -> 0 | E41: =IF($A$41='Buses TCO Dashboard'!$C$15,'Buses TCO Dashboard'!F47*Currency!$C$5,) -> 0
A42: EURO | B42: =IF($A$42='Buses TCO Dashboard'!$C$15,'Buses TCO Dashboard'!C47*Currency!$C$8,) -> 0 | C42: =IF($A$42='Buses TCO Dashboard'!$C$15,'Buses TCO Dashboard'!D47*Currency!$C$8,) -> 0 | D42: =IF($A$42='Buses TCO Dashboard'!$C$15,'Buses TCO Dashboard'!E47*Currency!$C$8,) -> 0 | E42: =IF($A$42='Buses TCO Dashboard'!$C$15,'Buses TCO Dashboard'!F47*Currency!$C$8,) -> 0
A44: AVERAGE FUEL COST
A45: INR | B45: =IF($A$45='Buses TCO Dashboard'!$C$15,'Buses TCO Dashboard'!C43,) -> 6 | C45: =IF($A$45='Buses TCO Dashboard'!$C$15,'Buses TCO Dashboard'!D43,) -> 88 | D45: =IF($A$45='Buses TCO Dashboard'!$C$15,'Buses TCO Dashboard'!E43,) -> 88 | E45: =IF($A$45='Buses TCO Dashboard'!$C$15,'Buses TCO Dashboard'!F43,) -> 47
A46: USD | B46: =IF($A$46='Buses TCO Dashboard'!$C$15,'Buses TCO Dashboard'!C43*Currency!$C$5,) -> 0 | C46: =IF($A$46='Buses TCO Dashboard'!$C$15,'Buses TCO Dashboard'!$D$43*Currency!$C$5/3.78,) -> 0 | D46: =IF($A$46='Buses TCO Dashboard'!$C$15,'Buses TCO Dashboard'!E43*Currency!$C$5/3.78,) -> 0 | E46: =IF($A$46='Buses TCO Dashboard'!$C$15,'Buses TCO Dashboard'!F43*Currency!$C$5/2.567,) -> 0
A47: EURO | B47: =IF($A$47='Buses TCO Dashboard'!$C$15,'Buses TCO Dashboard'!C43*Currency!$C$8,) -> 0 | C47: =IF($A$47='Buses TCO Dashboard'!$C$15,'Buses TCO Dashboard'!D43*Currency!$C$8,) -> 0 | D47: =IF($A$47='Buses TCO Dashboard'!$C$15,'Buses TCO Dashboard'!E43*Currency!$C$8,) -> 0 | E47: =IF($A$47='Buses TCO Dashboard'!$C$15,'Buses TCO Dashboard'!F43*Currency!$C$8,) -> 0

Sheet Financing (hidden)
A1: Vehicle Cost | B1: e-Bus | C1: Diesel - Bus (HC) | D1: Diesel - Bus (LC) | E1: CNG - Bus
A2: Total Cost of Bus (₹) | B2: ='Buses TCO Dashboard'!C20-'Buses TCO Dashboard'!C23 -> 10000000 | C2: ='Buses TCO Dashboard'!D20 -> 8800000 | D2: ='Buses TCO Dashboard'!E20 -> 5807000 | E2: ='Buses TCO Dashboard'!F20 -> 5600000
A3: Share of Operator (%) | B3: =100%-B6 -> 0.8 | C3: =100%-C6 -> 0.8 | D3: 0.8 | E3: 0.8
A4: Share of Operator (₹) | B4: =B3*B2 -> 8000000 | C4: =C3*C2 -> 7040000 | D4: =D3*D2 -> 4645600 | E4: =E3*E2 -> 4480000
A5: Processing Fees | B5: =IF(B8=0,0,IF(B4*0.5%>500,B4*0.5%,500)) -> 40000 | C5: =IF(C8=0,0,IF(C4*0.5%>500,C4*0.5%,500)) -> 35200 | D5: 23228 | E5: 22400
A6: Equity % | B6: ='Buses TCO Dashboard'!C31 -> 0.2 | C6: ='Buses TCO Dashboard'!D31 -> 0.2 | D6: ='Buses TCO Dashboard'!E31 -> 0.2 | E6: ='Buses TCO Dashboard'!F31 -> 0.2
A7: Equity (₹) | B7: =(B6*B2) -> 2000000 | C7: =(C6*C2) -> 1760000 | D7: =(D6*D2) -> 1161400 | E7: =(E6*E2) -> 1120000
A8: Loan amount (₹) | B8: =B4 -> 8000000 | C8: =C4 -> 7040000 | D8: =D4 -> 4645600 | E8: =E4 -> 4480000
A9: Interest rate (%) | B9: ='Buses TCO Dashboard'!C30 -> 0.11 | C9: ='Buses TCO Dashboard'!D30 -> 0.08 | D9: ='Buses TCO Dashboard'!E30 -> 0.08 | E9: ='Buses TCO Dashboard'!F30 -> 0.08
A10: Term of payment (yrs) | B10: ='Buses TCO Dashboard'!C29 -> 7 | C10: ='Buses TCO Dashboard'!D29 -> 7 | D10: ='Buses TCO Dashboard'!E29 -> 7 | E10: ='Buses TCO Dashboard'!F29 -> 7
A11: No of EMI (Yearly) | B11: =B10*12 -> 84 | C11: =C10*12 -> 84 | D11: 84 | E11: 84
A12: Monthly EMI Loan (Rs.) | B12: =((PMT(B9/12,B10*12,-B8))+(B5/B11)) -> 137455.682 | C12: =((PMT(C9/12,C10*12,-C8))+(C5/C11)) -> 110145.997 | D12: 72683.84144 | E12: 70092.90719
A13: Total interest paid | B13: =(B12*B10*12)-B8 -> 3546277.284 | C13: =(C12*C10*12)-C8 -> 2212263.749 | D13: 1459842.681 | E13: 1407804.204
A14: Yearly Interest Paid | B14: =B13/B10 -> 506611.0406 | C14: =C13/C10 -> 316037.6785 | D14: =D13/D10 -> 208548.9544 | E14: =E13/E10 -> 201114.8863
A15: EMI per KM (Rs.) | B15: =B14/Summary!B4 -> 5.551901815 | C15: =C14/Summary!B4 -> 3.463426613 | D15: =D14/Summary!B4 -> 2.285467993 | E15: =E14/Summary!B4 -> 2.203998754
A17: Total Interest Paid | B17: =VLOOKUP('Buses TCO Dashboard'!$C$15,Financing!$A$22:$E$24,2,0) -> 3546277.284 | C17: =VLOOKUP('Buses TCO Dashboard'!$C$15,Financing!$A$22:$E$24,3,0) -> 2212263.749 | D17: =VLOOKUP('Buses TCO Dashboard'!$C$15,Financing!$A$22:$E$24,4,0) -> 1459842.681 | E17: =VLOOKUP('Buses TCO Dashboard'!$C$15,Financing!$A$22:$E$24,5,0) -> 1407804.204
A18: (Used for Dashboard Calc.)
A21: YEARLY INTEREST
A22: INR | B22: =IF($A$22='Buses TCO Dashboard'!$C$15,Financing!B13,) -> 3546277.284 | C22: =IF($A$22='Buses TCO Dashboard'!$C$15,Financing!C13,) -> 2212263.749 | D22: =IF($A$22='Buses TCO Dashboard'!$C$15,Financing!D13,) -> 1459842.681 | E22: =IF($A$22='Buses TCO Dashboard'!$C$15,Financing!E13,) -> 1407804.204
A23: USD | B23: =IF($A$23='Buses TCO Dashboard'!$C$15,Financing!B13*Currency!$C$5,) -> 0 | C23: =IF($A$23='Buses TCO Dashboard'!$C$15,Financing!C13*Currency!$C$5,) -> 0 | D23: =IF($A$23='Buses TCO Dashboard'!$C$15,Financing!D13*Currency!$C$5,) -> 0 | E23: =IF($A$23='Buses TCO Dashboard'!$C$15,Financing!E13*Currency!$C$5,) -> 0
A24: EURO | B24: =IF($A$24='Buses TCO Dashboard'!$C$15,Financing!B13*Currency!$C$8,) -> 0 | C24: =IF($A$24='Buses TCO Dashboard'!$C$15,Financing!C13*Currency!$C$8,) -> 0 | D24: =IF($A$24='Buses TCO Dashboard'!$C$15,Financing!D13*Currency!$C$8,) -> 0 | E24: =IF($A$24='Buses TCO Dashboard'!$C$15,Financing!E13*Currency!$C$8,) -> 0

Sheet TCO_1 (hidden)
A1: Parameter | B1: Unit | C1: e-Bus (AC) | D1: Diesel-HC Bus (AC) | E1: Diesel-LC Bus (AC) | F1: CNG-Bus (AC)
A2: Discount rate value | B2: - | C2: =Summary!B10 -> 0.1 | D2: =Summary!C10 -> 0.1 | E2: =Summary!D10 -> 0.1 | F2: =Summary!E10 -> 0.1
A3: Resale rate value | B3: - | C3: =Summary!B11 -> 0.2 | D3: =Summary!C11 -> 0.1 | E3: =Summary!D11 -> 0.1 | F3: =Summary!E11 -> 0.1
A4: Capital recovery factor (CRF)_N | B4: - | C4: =C2*(1+C2)^Summary!B3 -> 0.259374246 | D4: =D2*(1+D2)^Summary!B3 -> 0.259374246 | E4: =E2*(1+E2)^Summary!B3 -> 0.259374246 | F4: =F2*(1+F2)^Summary!B3 -> 0.259374246
A5: Capital recovery factor (CRF)_D | B5: - | C5: =((1+C2)^Summary!B3)-1 -> 1.59374246 | D5: =(1+D2)^Summary!B3-1 -> 1.59374246 | E5: =(1+E2)^Summary!B3-1 -> 1.59374246 | F5: =(1+F2)^Summary!B3-1 -> 1.59374246
A6: CRF | B6: - | C6: =C4/C5 -> 0.1627453949 | D6: =D4/D5 -> 0.1627453949 | E6: =E4/E5 -> 0.1627453949 | F6: =F4/F5 -> 0.1627453949
A7: Present value factor (PVF) | B7: - | C7: =1/(1+C2)^10 -> 0.3855432894 | D7: =1/(1+D2)^Summary!B3 -> 0.3855432894 | E7: =1/(1+E2)^Summary!B3 -> 0.3855432894 | F7: =1/(1+F2)^Summary!B3 -> 0.3855432894
A8: Residual value (RV) | B8: ₹ | C8: =Summary!B14*C3 -> 3709255.457 | D8: =Summary!C14*D3 -> 1284357.675 | E8: =Summary!D14*E3 -> 901910.5681 | F8: =Summary!E14*F3 -> 875820.4204
A9: Annual Travel Distance | B9: km | C9: =Summary!$B$4 -> 91250 | D9: =Summary!$B$4 -> 91250 | E9: =Summary!$B$4 -> 91250 | F9: =Summary!$B$4 -> 91250
A10: Capex component | B10: ₹ | C10: =((Summary!B19-(C8*C7))*C6) -> 1971855.547 | D10: =(Summary!C19-(D8*D7))*D6 -> 2009645.44 | E10: =(Summary!D19-(E8*E7))*E6 -> 1411227.181 | F10: =(Summary!E19-(F8*F7))*F6 -> 1370403.704
A11: TCO | B11: ₹/km | C11: =(C10+L22)/C9 -> 33.04691415 | D11: =(D10+L23)/D9 -> 54.44662468 | E11: =(E10+L24)/E9 -> 33.46831488 | F11: =(F10+L25)/F9 -> 31.99191824
A13: Opex / year
A14: Vehicle type | B14: Unit | C14: 1 | D14: =C14+1 -> 2 | E14: 3 | F14: 4 | G14: 5 | H14: 6 | I14: 7 | J14: 8 | K14: 9 | L14: 10 | M14: Total
A15: e-Bus (AC) | B15: ₹ | C15: =Summary!$B$27/(1+$C$2)^C14 -> 1544121.455 | D15: =Summary!$B$27/(1+$C$2)^D14 -> 1403746.777 | E15: =Summary!$B$27/(1+$C$2)^E14 -> 1276133.434 | F15: =Summary!$B$27/(1+$C$2)^F14 -> 1160121.303 | G15: =Summary!$B$27/(1+$C$2)^G14 -> 1054655.73 | H15: =Summary!$B$27/(1+$C$2)^H14 -> 958777.9365 | I15: =Summary!$B$27/(1+$C$2)^I14 -> 871616.3059 | J15: =Summary!$B$27/(1+$C$2)^J14 -> 792378.4599 | K15: =Summary!$B$27/(1+$C$2)^K14 -> 720344.0545 | L15: =Summary!$B$27/(1+$C$2)^L14 -> 654858.2314 | M15: =SUM(C15:L15)/Summary!B3 -> 1043675.369
A16: Diesel-HC Bus (AC) | B16: ₹ | C16: =Summary!$C$27/(1+$D$2)^C14 -> 4377272.727 | D16: =Summary!$C$27/(1+$D$2)^D14 -> 3979338.843 | E16: =Summary!$C$27/(1+$D$2)^E14 -> 3617580.766 | F16: =Summary!$C$27/(1+$D$2)^F14 -> 3288709.788 | G16: =Summary!$C$27/(1+$D$2)^G14 -> 2989736.171 | H16: =Summary!$C$27/(1+$D$2)^H14 -> 2717941.973 | I16: =Summary!$C$27/(1+$D$2)^I14 -> 2470856.339 | J16: =Summary!$C$27/(1+$D$2)^J14 -> 2246233.036 | K16: =Summary!$C$27/(1+$D$2)^K14 -> 2042030.032 | L16: =Summary!$C$27/(1+$D$2)^L14 -> 1856390.939 | M16: =SUM(C16:L16)/Summary!B3 -> 2958609.061
A17: Diesel-LC Bus (AC) | B17: ₹ | C17: =Summary!$D$27/(1+$E$2)^C14 -> 2430464.217 | D17: =Summary!$D$27/(1+$E$2)^D14 -> 2209512.924 | E17: =Summary!$D$27/(1+$E$2)^E14 -> 2008648.113 | F17: =Summary!$D$27/(1+$E$2)^F14 -> 1826043.739 | G17: =Summary!$D$27/(1+$E$2)^G14 -> 1660039.763 | H17: =Summary!$D$27/(1+$E$2)^H14 -> 1509127.057 | I17: =Summary!$D$27/(1+$E$2)^I14 -> 1371933.688 | J17: =Summary!$D$27/(1+$E$2)^J14 -> 1247212.444 | K17: =Summary!$D$27/(1+$E$2)^K14 -> 1133829.494 | L17: =Summary!$D$27/(1+$E$2)^L14 -> 1030754.086 | M17: =SUM(C17:L17)/Summary!B3 -> 1642756.552
A18: CNG-Bus (AC) | B18: ₹ | C18: =Summary!$E$27/(1+$F$2)^C14 -> 2291542.208 | D18: =Summary!$E$27/(1+$F$2)^D14 -> 2083220.189 | E18: =Summary!$E$27/(1+$F$2)^E14 -> 1893836.535 | F18: =Summary!$E$27/(1+$F$2)^F14 -> 1721669.578 | G18: =Summary!$E$27/(1+$F$2)^G14 -> 1565154.161 | H18: =Summary!$E$27/(1+$F$2)^H14 -> 1422867.42 | I18: =Summary!$E$27/(1+$F$2)^I14 -> 1293515.836 | J18: =Summary!$E$27/(1+$F$2)^J14 -> 1175923.487 | K18: =Summary!$E$27/(1+$F$2)^K14 -> 1069021.352 | L18: =Summary!$E$27/(1+$F$2)^L14 -> 971837.5927 | M18: =SUM(C18:L18)/Summary!B3 -> 1548858.836
A20: Opex Sum
A21: Vehicle type | B21: Unit | C21: 1 | D21: =C21+1 -> 2 | E21: 3 | F21: 4 | G21: 5 | H21: 6 | I21: 7 | J21: 8 | K21: 9 | L21: 10
A22: e-Bus (AC) | B22: ₹/km | C22: =(1/C21)*SUM($C$15:C15) -> 1544121.455 | D22: =(1/D21)*SUM($C$15:D15) -> 1473934.116 | E22: =(1/E21)*SUM($C$15:E15) -> 1408000.555 | F22: =(1/F21)*SUM($C$15:F15) -> 1346030.742 | G22: =(1/G21)*SUM($C$15:G15) -> 1287755.74 | H22: =(1/H21)*SUM($C$15:H15) -> 1232926.106 | I22: =(1/I21)*SUM($C$15:I15) -> 1181310.42 | J22: =(1/J21)*SUM($C$15:J15) -> 1132693.925 | K22: =(1/K21)*SUM($C$15:K15) -> 1086877.273 | L22: =(1/L21)*SUM($C$15:L15) -> 1043675.369
A23: Diesel-HC Bus (AC) | B23: ₹/km | C23: =(1/C21)*SUM($C$16:C16) -> 4377272.727 | D23: =(1/D21)*SUM($C$16:D16) -> 4178305.785 | E23: =(1/E21)*SUM($C$16:E16) -> 3991397.446 | F23: =(1/F21)*SUM($C$16:F16) -> 3815725.531 | G23: =(1/G21)*SUM($C$16:G16) -> 3650527.659 | H23: =(1/H21)*SUM($C$16:H16) -> 3495096.711 | I23: =(1/I21)*SUM($C$16:I16) -> 3348776.658 | J23: =(1/J21)*SUM($C$16:J16) -> 3210958.705 | K23: =(1/K21)*SUM($C$16:K16) -> 3081077.742 | L23: =(1/L21)*SUM($C$16:L16) -> 2958609.061
A24: Diesel-LC Bus (AC) | B24: ₹/km | C24: =(1/C21)*SUM($C$17:C17) -> 2430464.217 | D24: =(1/D21)*SUM($C$17:D17) -> 2319988.57 | E24: =(1/E21)*SUM($C$17:E17) -> 2216208.418 | F24: =(1/F21)*SUM($C$17:F17) -> 2118667.248 | G24: =(1/G21)*SUM($C$17:G17) -> 2026941.751 | H24: =(1/H21)*SUM($C$17:H17) -> 1940639.302 | I24: =(1/I21)*SUM($C$17:I17) -> 1859395.643 | J24: =(1/J21)*SUM($C$17:J17) -> 1782872.743 | K24: =(1/K21)*SUM($C$17:K17) -> 1710756.827 | L24: =(1/L21)*SUM($C$17:L17) -> 1642756.552
A25: CNG-Bus (AC) | B25: ₹/km | C25: =(1/C21)*SUM($C$18:C18) -> 2291542.208 | D25: =(1/D21)*SUM($C$18:D18) -> 2187381.198 | E25: =(1/E21)*SUM($C$18:E18) -> 2089532.977 | F25: =(1/F21)*SUM($C$18:F18) -> 1997567.127 | G25: =(1/G21)*SUM($C$18:G18) -> 1911084.534 | H25: =(1/H21)*SUM($C$18:H18) -> 1829715.015 | I25: =(1/I21)*SUM($C$18:I18) -> 1753115.132 | J25: =(1/J21)*SUM($C$18:J18) -> 1680966.177 | K25: =(1/K21)*SUM($C$18:K18) -> 1612972.307 | L25: =(1/L21)*SUM($C$18:L18) -> 1548858.836
A27: TCO / year
A28: Vehicle type | B28: Unit | C28: 1 | D28: =C28+1 -> 2 | E28: 3 | F28: 4 | G28: 5 | H28: 6 | I28: 7 | J28: 8 | K28: 9 | L28: 10 | M28: Average TCO
A29: PVF | B29: - | C29: =1/(1+$C$2)^C28 -> 0.9090909091 | D29: =1/(1+$C$2)^D28 -> 0.826446281 | E29: 0.7513148009 | F29: 0.6830134554 | G29: 0.6209213231 | H29: 0.5644739301 | I29: 0.5131581182 | J29: 0.4665073802 | K29: 0.4240976184 | L29: 0.3855432894
A30: CRF | B30: - | C30: =($C$2*(1+$C$2)^C28)/((1+$C$2)^C28-1) -> 1.1 | D30: =($C$2*(1+$C$2)^D28)/((1+$C$2)^D28-1) -> 0.5761904762 | E30: 0.4021148036 | F30: 0.3154708037 | G30: 0.2637974808 | H30: 0.2296073804 | I30: 0.2054054997 | J30: 0.1874440176 | K30: 0.1736405391 | L30: 0.1627453949
A31: e-Bus (AC) | B31: ₹/km | C31: =(((Summary!$B$19-($C$8*C29))*C30)+C22)/($C$9) -> 139.5700933 | D31: =(((Summary!$B$19-($C$8*D29))*D30)+D22)/($C$9) -> 82.33268989 | E31: =(((Summary!$B$19-($C$8*E29))*E30)+E22)/($C$9) -> 62.84425426 | F31: =(((Summary!$B$19-($C$8*F29))*F30)+F22)/($C$9) -> 52.82465172 | G31: =(((Summary!$B$19-($C$8*G29))*G30)+G22)/($C$9) -> 46.61548342 | H31: =(((Summary!$B$19-($C$8*H29))*H30)+H22)/($C$9) -> 42.32881604 | I31: =(((Summary!$B$19-($C$8*I29))*I30)+I22)/($C$9) -> 39.15412986 | J31: =(((Summary!$B$19-($C$8*J29))*J30)+J22)/($C$9) -> 36.68504507 | K31: =(((Summary!$B$19-($C$8*K29))*K30)+K22)/($C$9) -> 34.69488867 | L31: =(((Summary!$B$19-($C$8*L29))*L30)+L22)/($C$9) -> 33.04691415 | M31: =SUM(C31:L31)/$L$28 -> 57.00969664
A32: PVF | B32: - | C32: =1/(1+$D$2)^C28 -> 0.9090909091 | D32: =1/(1+$D$2)^D28 -> 0.826446281 | E32: 0.7513148009 | F32: 0.6830134554 | G32: 0.6209213231 | H32: 0.5644739301 | I32: 0.5131581182 | J32: 0.4665073802 | K32: 0.4240976184 | L32: 0.3855432894
A33: CRF | B33: - | C33: =($D$2*(1+$D$2)^C28)/((1+$D$2)^C28-1) -> 1.1 | D33: =($D$2*(1+$D$2)^D28)/((1+$D$2)^D28-1) -> 0.5761904762 | E33: 0.4021148036 | F33: 0.3154708037 | G33: 0.2637974808 | H33: 0.2296073804 | I33: 0.2054054997 | J33: 0.1874440176 | K33: 0.1736405391 | L33: 0.1627453949
A34: Diesel-HC Bus (AC) | B34: ₹/km | C34: =(((Summary!$C$19-($D$8*C32))*C33)+C23)/($D$9) -> 188.7216381 | D34: =(((Summary!$C$19-($D$8*D32))*D33)+D23)/($D$9) -> 120.1868876 | E34: =(((Summary!$C$19-($D$8*E32))*E33)+E23)/($D$9) -> 96.08730215 | F34: =(((Summary!$C$19-($D$8*F32))*F33)+F23)/($D$9) -> 83.1863828 | G34: =(((Summary!$C$19-($D$8*G32))*G33)+G23)/($D$9) -> 74.83020601 | H34: =(((Summary!$C$19-($D$8*H32))*H33)+H23)/($D$9) -> 68.79577523 | I34: =(((Summary!$C$19-($D$8*I32))*I33)+I23)/($D$9) -> 64.12646132 | J34: =(((Summary!$C$19-($D$8*J32))*J33)+J23)/($D$9) -> 60.34083218 | K34: =(((Summary!$C$19-($D$8*K32))*K33)+K23)/($D$9) -> 57.16890455 | L34: =(((Summary!$C$19-($D$8*L32))*L33)+L23)/($D$9) -> 54.44662468 | M34: =SUM(C34:L34)/$L$28 -> 86.78910146
A35: PVF | B35: - | C35: =1/(1+$E$2)^C28 -> 0.9090909091 | D35: =1/(1+$E$2)^D28 -> 0.826446281 | E35: 0.7513148009 | F35: 0.6830134554 | G35: 0.6209213231 | H35: 0.5644739301 | I35: 0.5131581182 | J35: 0.4665073802 | K35: 0.4240976184 | L35: 0.3855432894
A36: CRF | B36: - | C36: =($E$2*(1+$E$2)^C28)/((1+$E$2)^C28-1) -> 1.1 | D36: =($E$2*(1+$E$2)^D28)/((1+$E$2)^D28-1) -> 0.5761904762 | E36: 0.4021148036 | F36: 0.3154708037 | G36: 0.2637974808 | H36: 0.2296073804 | I36: 0.2054054997 | J36: 0.1874440176 | K36: 0.1736405391 | L36: 0.1627453949
A37: Diesel-LC Bus (AC) | B37: ₹/km | C37: =(((Summary!$D$19-($E$8*C35))*C36)+C24)/($E$9) -> 125.4747386 | D37: =(((Summary!$D$19-($E$8*D35))*D36)+D24)/($E$9) -> 77.66827556 | E37: =(((Summary!$D$19-($E$8*E35))*E36)+E24)/($E$9) -> 61.04595938 | F37: =(((Summary!$D$19-($E$8*F35))*F36)+F24)/($E$9) -> 52.26954927 | G37: =(((Summary!$D$19-($E$8*G35))*G36)+G24)/($E$9) -> 46.66770882 | H37: =(((Summary!$D$19-($E$8*H35))*H36)+H24)/($E$9) -> 42.68052893 | I37: =(((Summary!$D$19-($E$8*I35))*I36)+I24)/($E$9) -> 39.63729554 | J37: =(((Summary!$D$19-($E$8*J35))*J36)+J24)/($E$9) -> 37.20091467 | K37: =(((Summary!$D$19-($E$8*K35))*K36)+K24)/($E$9) -> 35.18270705 | L37: =(((Summary!$D$19-($E$8*L35))*L36)+L24)/($E$9) -> 33.46831488 | M37: =SUM(C37:L37)/$L$28 -> 55.12959927
A38: PVF | B38: - | C38: =1/(1+$F$2)^C28 -> 0.9090909091 | D38: =1/(1+$F$2)^D28 -> 0.826446281 | E38: 0.7513148009 | F38: 0.6830134554 | G38: 0.6209213231 | H38: 0.5644739301 | I38: 0.5131581182 | J38: 0.4665073802 | K38: 0.4240976184 | L38: 0.3855432894
A39: CRF | B39: - | C39: =($F$2*(1+$F$2)^C28)/((1+$F$2)^C28-1) -> 1.1 | D39: =($F$2*(1+$F$2)^D28)/((1+$F$2)^D28-1) -> 0.5761904762 | E39: 0.4021148036 | F39: 0.3154708037 | G39: 0.2637974808 | H39: 0.2296073804 | I39: 0.2054054997 | J39: 0.1874440176 | K39: 0.1736405391 | L39: 0.1627453949
A40: CNG-Bus (AC) | B40: ₹/km | C40: =(((Summary!$E$19-($F$8*C38))*C39)+C25)/($F$9) -> 121.0931114 | D40: =(((Summary!$E$19-($F$8*D38))*D39)+D25)/($F$9) -> 74.70375568 | E40: =(((Summary!$E$19-($F$8*E38))*E39)+E25)/($F$9) -> 58.59439152 | F40: =(((Summary!$E$19-($F$8*F38))*F39)+F25)/($F$9) -> 50.10203964 | G40: =(((Summary!$E$19-($F$8*G38))*G39)+G25)/($F$9) -> 44.69062533 | H40: =(((Summary!$E$19-($F$8*H38))*H39)+H25)/($F$9) -> 40.84548547 | I40: =(((Summary!$E$19-($F$8*I38))*I39)+I25)/($F$9) -> 37.91542087 | J40: =(((Summary!$E$19-($F$8*J38))*J39)+J25)/($F$9) -> 35.57319346 | K40: =(((Summary!$E$19-($F$8*K38))*K39)+K25)/($F$9) -> 33.63567911 | L40: =(((Summary!$E$19-($F$8*L38))*L39)+L25)/($F$9) -> 31.99191824 | M40: =SUM(C40:L40)/$L$28 -> 52.91456207

Sheet Plots (hidden)

Sheet References (hidden)
B2: Assumption | C2: Source
B3: Life of Vehicle | C3: Assumed
B4: Annual driving distance | C4: Assumed
B5: Total distance travelled | C5: Assumed
B6: LIB cost | C6: https://bnef.turtl.co/story/evo2018?teaser=true | H6: BNEF EV Outlook 2018 ($200/kWh)
B7: Discount rate | C7: Assumed
B8: Resale value | C8: Assumed
B9: Purchase cost (e-4W) + Tax + Insurance | C9: https://www.zigwheels.com/newcars/Mahindra/e-verito/on-road-price-delhi
B10: Purchase cost (CNG-4W) + Tax + Insurance | C10: https://www.zigwheels.com/newcars/Ford/figo-aspire/on-road-price-delhi | J10: (Refer Trend Plus CNG)
B11: Purchase cost (Petrol-4W) + Tax + Insurance | C11: https://www.zigwheels.com/newcars/Ford/figo-aspire/on-road-price-delhi
B12: Purchase cost (Diesel-4W) + Tax + Insurance | C12: https://www.zigwheels.com/newcars/Mahindra/Verito/on-road-price-delhi
B13: Fuel cost (e-4W) | C13: http://transport.delhi.gov.in/sites/default/files/All-PDF/Electric%20Policy%202018.pdf
B14: Fuel cost (CNG-4W) | C14: To be added by Parveen
B15: Fuel cost (Petrol-4W) | C15: https://www.iocl.com/Product_PreviousPrice/PetrolPreviousPriceDynamic.aspx
B16: Fuel cost (Diesel-4W) | C16: https://www.iocl.com/Product_PreviousPrice/DieselPreviousPriceDynamic.aspx
B17: Mileage (e-4W) | C17: http://www.mahindraelectric.com/vehicles/everito/ | I17: Battery capacity: 18.55kWh; Range: 140km
B18: Mileage (CNG-4W) | C18: https://www.zigwheels.com/newcars/Ford/figo-aspire/trend-plus-cng#leadform
B19: Mileage (Petrol-4W) | C19: To be added by Parveen
B20: Mileage (Diesel-4W) | C20: To be added by Parveen
B21: Annual Maintenance cost (e-bus) | C21: To be added by Parveen | M21: https://shaktifoundation.in/wp-content/uploads/2017/06/Improving-bus-Fuel-Efficiency-through-fleet-inspection-and-maintenance-practices.pdf
B22: Annual Maintenance cost (Diesel-High Cost Bus) | C22: To be added by Parveen
B23: Annual Maintenance cost (Diesel-Low Cost Bus) | C23: To be added by Parveen
B24: Annual Maintenance cost (CNG-Bus) | C24: https://economictimes.indiatimes.com/infrastructure/what-ails-dtcs-rs-55-lakh-each-low-floor-buses/dtc-pays-both-the-manufacturers-for-maintenance/slideshow/19574992.cms
B25: Misc cost (e-bus) | C25: Assumption
B26: Misc cost (Diesel-High cost) | C26: Based on expert interview
B27: Misc cost (Diesel-Low Cost) | C27: Based on expert interview
B28: Misc cost (CNG-Bus) | C28: Based on expert interview
B29: No. of battery replacements | C29: http://www.mahindraelectric.com/vehicles/everito/
B30: Capacity of the battery | C30: http://www.mahindraelectric.com/vehicles/everito/
C33: https://www.team-bhp.com/forum/commercial-vehicles/141656-city-bus-maintenance-costs-some-shocking-numbers.html
